bitfinex/quotes_BTCUSD_20241206
["timestamp","ask_amount","ask_price","bid_price","bid_amount"]
[1733443883507,0.18094105,96418.0,96370.0,0.151726]
[1733443883508,0.14109709,96374.0,96370.0,0.151726]
[1733443883920,0.0007101,96373.0,96370.0,0.151726]
[1733443884184,0.14109709,96374.0,96370.0,0.151726]
[1733443884408,0.28234582,96371.0,96370.0,0.151726]
[1733443884648,0.38737736,96371.0,96370.0,0.151726]
[1733443888674,0.38057736,96371.0,96370.0,0.151726]
[1733443889533,0.14124873,96361.0,96360.0,0.0008645]
[1733443890794,0.14124873,96361.0,96234.0,1.6304]
[1733443890795,0.14124873,96294.0,96234.0,1.6304]
[1733443891000,0.14124873,96294.0,96076.0,0.58103574]
[1733443891001,0.29124873,96353.0,96310.0,0.10503154]
[1733443891221,0.14124873,96294.0,96293.0,0.10503154]
[1733443891445,0.14124873,96294.0,96209.0,0.1243]
[1733443891446,0.14124873,96267.0,96262.0,0.10503154]
[1733443891641,0.15,96299.0,96262.0,0.10503154]
[1733443891642,0.13444873,96280.0,96262.0,0.10503154]
[1733443891881,0.0906102,96284.0,96279.0,0.10854178]
[1733443892096,0.44647695,96280.0,96269.0,0.00084872]
[1733443892323,0.10503154,96311.0,96209.0,0.1243]
[1733443892324,0.4454085,96277.0,96264.0,0.10588026]
[1733443892550,1.47138146,96276.0,96265.0,0.01058803]
[1733443892763,0.4386085,96289.0,96272.0,0.01555127]
[1733443893018,0.53085763,96357.0,96262.0,0.0471]
[1733443893019,0.48656245,96324.0,96297.0,0.0775]
[1733443893214,0.15,96365.0,96319.0,0.10503154]
[1733443893419,0.13444873,96381.0,96329.0,0.01555127]
[1733443893641,0.041466,96386.0,96353.0,0.0775]
[1733443893855,0.15,96411.0,96368.0,0.10503154]
[1733443894071,0.15,96411.0,96353.0,0.0775]
[1733443894072,0.15,96422.0,96375.0,0.01760386]
[1733443894313,0.15,96427.0,96379.0,0.10503154]
[1733443894506,0.15,96436.0,96379.0,0.12142772]
[1733443894722,0.15,96441.0,96388.0,0.01555127]
[1733443894967,0.13444873,96434.0,96396.0,0.10503154]
[1733443895207,0.13444873,96443.0,96400.0,0.10503154]
[1733443895431,0.13444873,96443.0,96375.0,0.01760386]
[1733443895432,0.13444873,96451.0,96409.0,0.10503154]
[1733443895701,0.15,96456.0,96411.0,0.10503154]
[1733443895899,0.15,96456.0,96412.0,0.00084408]
[1733443896140,0.13444873,96451.0,96413.0,0.10587562]
[1733443896342,0.13444873,96451.0,96414.0,0.023]
[1733443896549,0.13444873,96443.0,96416.0,0.023]
[1733443896765,0.13444873,96443.0,96417.0,0.10587587]
[1733443896989,0.13104873,96443.0,96417.0,0.10587587]
[1733443898308,0.15,96444.0,96417.0,0.10587587]
[1733443898515,0.13104873,96441.0,96417.0,0.00084433]
[1733443898725,0.28104873,96437.0,96403.0,0.023]
[1733443898897,0.28104873,96437.0,96404.0,0.10587612]
[1733443899404,0.13104873,96433.0,96404.0,0.10587612]
[1733443899610,0.13104873,96433.0,96401.0,0.0775]
[1733443899611,0.13104873,96425.0,96401.0,0.0775]
[1733443899814,0.13104873,96425.0,96402.0,0.1058764]
[1733443900034,0.13104873,96432.0,96402.0,0.1058764]
[1733443900791,0.13104873,96425.0,96402.0,0.1058764]
[1733443901198,0.15,96430.0,96402.0,0.1058764]
[1733443901199,0.13104873,96424.0,96402.0,0.1058764]
[1733443903538,0.15,96412.0,96395.0,0.00084489]
[1733443903971,0.1432,96412.0,96386.0,0.00084527]
[1733443904179,0.1432,96412.0,96387.0,0.10503154]
[1733443904392,0.1432,96412.0,96370.0,0.01895127]
[1733443904393,0.1432,96408.0,96388.0,0.00084527]
[1733443904609,0.1432,96408.0,96373.0,0.10587692]
[1733443904839,0.1432,96408.0,96374.0,0.00084538]
[1733443905039,0.1432,96408.0,96375.0,0.10503154]
[1733443905451,0.1432,96408.0,96376.0,0.00084538]
[1733443905694,0.1432,96408.0,96377.0,0.10503154]
[1733443905899,0.13104873,96421.0,96381.0,0.023]
[1733443906107,0.13104873,96419.0,96382.0,0.00084497]
[1733443906320,0.13104873,96419.0,96384.0,0.023]
[1733443906531,0.13104873,96419.0,96386.0,0.023]
[1733443906779,0.13104873,96419.0,96388.0,0.023]
[1733443907046,0.13104873,96419.0,96389.0,0.10587653]
[1733443907667,0.1432,96411.0,96389.0,0.00084499]
[1733443907884,0.13104873,96417.0,96390.0,0.10503154]
[1733443908081,0.13104873,96417.0,96391.0,0.00084509]
[1733443908379,0.13104873,96417.0,96392.0,0.10587663]
[1733443908585,0.13104873,96417.0,96374.0,0.02096932]
[1733443908799,0.23608027,96416.0,96375.0,0.10503154]
[1733443909003,0.13104873,96403.0,96375.0,0.10503154]
[1733443910444,0.1432,96392.0,96356.0,0.0471]
[1733443912302,0.24823154,96392.0,96356.0,0.0471]
[1733443912594,0.1432,96369.0,96352.0,0.0794]
[1733443912828,0.1432,96367.0,96352.0,0.0794]
[1733443913062,0.1432,96367.0,96332.0,0.0456]
[1733443913277,0.1432,96359.0,96332.0,0.15063154]
[1733443913462,0.1432,96359.0,96332.0,0.0456]
[1733443913741,0.1432,96357.0,96332.0,0.0456]
[1733443914170,0.00129726,96365.0,96333.0,0.10503154]
[1733443914379,0.13104873,96366.0,96333.0,0.10503154]
[1733443914628,0.13104873,96392.0,96350.0,0.10503154]
[1733443914857,0.1432,96398.0,96353.0,0.023]
[1733443915082,0.1432,96398.0,96332.0,0.0456]
[1733443915083,0.1432,96392.0,96354.0,0.10503154]
[1733443915339,0.13104873,96393.0,96354.0,0.10503154]
[1733443915578,0.1432,96393.0,96354.0,0.10503154]
[1733443915804,0.1432,96393.0,96344.0,0.0068]
[1733443915805,0.13104873,96405.0,96356.0,0.12803154]
[1733443916026,0.13104873,96402.0,96356.0,0.12803154]
[1733443916247,0.0466,96455.0,96355.0,0.09835127]
[1733443916248,0.1432,96415.0,96371.0,0.023]
[1733443916458,0.0466,96455.0,96355.0,0.0794]
[1733443916459,0.1432,96402.0,96372.0,0.10503154]
[1733443916882,0.27424873,96402.0,96372.0,0.10503154]
[1733443917088,0.27424873,96395.0,96355.0,0.0794]
[1733443917329,0.09055585,96475.0,96355.0,0.0794]
[1733443917330,0.13104873,96388.0,96356.0,0.10503154]
[1733443917565,0.14449687,96387.0,96356.0,0.10503154]
[1733443917780,0.1432,96387.0,96356.0,0.10503154]
[1733443918868,0.1296,96387.0,96356.0,0.10503154]
[1733443920666,0.01,96393.0,96356.0,0.10503154]
[1733443920873,0.01,96393.0,96355.0,0.0794]
[1733443920874,0.01,96393.0,96369.0,0.023]
[1733443921106,0.01,96393.0,96371.0,0.023]
[1733443921318,0.01,96393.0,96372.0,0.10503154]
[1733443921751,0.9964,96400.0,96374.0,0.023]
[1733443921970,0.9964,96400.0,96375.0,0.10503154]
[1733443922413,0.9964,96400.0,96377.0,0.10503154]
[1733443922642,0.9964,96400.0,96378.0,0.023]
[1733443922860,0.9964,96400.0,96379.0,0.10503154]
[1733443923792,0.9964,96400.0,96380.0,0.023]
[1733443924012,0.9964,96400.0,96384.0,0.023]
[1733443924230,0.9964,96400.0,96385.0,0.10503154]
[1733443925101,0.91338833,96400.0,96390.0,0.023]
[1733443925312,0.85473788,96400.0,96391.0,0.10503154]
[1733443926620,0.85560228,96400.0,96391.0,0.10503154]
[1733443926858,0.82591229,96400.0,96391.0,0.10503154]
[1733443928138,0.75302387,96400.0,96391.0,0.10503154]
[1733443929503,0.73952387,96400.0,96391.0,0.10503154]
[1733443930590,0.66173978,96400.0,96391.0,0.10503154]
[1733443930820,0.67173978,96400.0,96391.0,0.10503154]
[1733443931507,0.63397979,96400.0,96391.0,0.10503154]
[1733443931714,0.59787979,96400.0,96391.0,0.10503154]
[1733443932386,0.55119739,96400.0,96391.0,0.10503154]
[1733443932613,0.13153627,96400.0,96398.0,0.023]
[1733443932821,0.09117091,96400.0,96399.0,0.12803154]
[1733443933104,0.08117091,96400.0,96399.0,0.12803154]
[1733443934021,0.0008642,96420.0,96399.0,0.12803154]
[1733443934227,0.0008642,96420.0,96400.0,0.023]
[1733443934435,0.0008642,96420.0,96406.0,0.023]
[1733443934644,0.0008642,96420.0,96407.0,0.10503154]
[1733443935130,0.0008642,96420.0,96410.0,0.10503154]
[1733443935338,0.0049296,96443.0,96411.0,0.023]
[1733443935550,0.0049296,96443.0,96412.0,0.10503154]
[1733443935989,0.0049296,96443.0,96423.0,0.10503154]
[1733443936202,0.0049296,96443.0,96418.0,0.0456]
[1733443936203,0.0049296,96443.0,96431.0,0.023]
[1733443936441,0.0049296,96443.0,96432.0,0.10503154]
[1733443936677,0.01,96451.0,96436.0,0.10503154]
[1733443936901,0.01,96451.0,96437.0,0.023]
[1733443937116,0.01,96451.0,96438.0,0.10503154]
[1733443937323,0.0047,96451.0,96438.0,0.10503154]
[1733443937593,0.00468696,96451.0,96438.0,0.10503154]
[1733443938016,0.01440006,96466.0,96438.0,0.10503154]
[1733443939114,0.01440006,96466.0,96436.0,0.03352254]
[1733443939115,0.01440006,96466.0,96443.0,0.023]
[1733443939329,0.01440006,96466.0,96444.0,0.10503154]
[1733443939536,0.01440006,96466.0,96445.0,0.023]
[1733443939740,0.01440006,96466.0,96447.0,0.023]
[1733443939946,0.01440006,96466.0,96449.0,0.023]
[1733443940159,0.01440006,96466.0,96451.0,0.1007]
[1733443940361,0.01440006,96466.0,96453.0,0.023]
[1733443940576,0.01440006,96466.0,96455.0,0.023]
[1733443940802,0.01110006,96466.0,96457.0,0.023]
[1733443941027,0.01110006,96466.0,96459.0,0.023]
[1733443941226,0.01110006,96466.0,96465.0,0.10503154]
[1733443941439,6e-05,96483.0,96465.0,0.12803154]
[1733443941671,6e-05,96483.0,96464.0,0.0204]
[1733443941672,6e-05,96483.0,96472.0,0.023]
[1733443941905,6e-05,96483.0,96466.0,0.023]
[1733443941906,6e-05,96483.0,96474.0,0.023]
[1733443942126,6e-05,96483.0,96476.0,0.023]
[1733443942335,6e-05,96483.0,96478.0,0.023]
[1733443942550,0.1281294,96514.0,96480.0,0.023]
[1733443942769,0.1281294,96519.0,96481.0,0.10503154]
[1733443942957,0.1281294,96518.0,96482.0,0.023]
[1733443943171,0.1281294,96518.0,96484.0,0.023]
[1733443943380,0.1281294,96518.0,96486.0,0.023]
[1733443943581,0.1281294,96517.0,96487.0,0.10503154]
[1733443943781,0.0008644,96520.0,96487.0,0.10503154]
[1733443944013,0.0030418,96518.0,96488.0,0.023]
[1733443944218,0.0030418,96518.0,96490.0,0.023]
[1733443944544,0.0030418,96518.0,96492.0,0.023]
[1733443944716,0.0008644,96520.0,96494.0,0.023]
[1733443944954,0.0008644,96520.0,96496.0,0.023]
[1733443945182,0.0008644,96520.0,96498.0,0.023]
[1733443945337,0.0008644,96520.0,96499.0,0.10503154]
[1733443945556,0.0008644,96520.0,96500.0,0.023]
[1733443945767,0.0008644,96520.0,96492.0,0.01012939]
[1733443945768,0.0008644,96520.0,96502.0,0.023]
[1733443945966,0.0008644,96520.0,96504.0,0.023]
[1733443946171,0.0008644,96520.0,96506.0,0.023]
[1733443946325,0.0008644,96520.0,96508.0,0.023]
[1733443946522,0.0008644,96520.0,96510.0,0.023]
[1733443946738,0.0008644,96520.0,96511.0,0.10503154]
[1733443948506,0.0008644,96520.0,96512.0,0.023]
[1733443948726,0.0008644,96520.0,96514.0,0.023]
[1733443948914,0.0008644,96520.0,96515.0,0.10503154]
[1733443949152,0.0008644,96520.0,96516.0,0.023]
[1733443949366,0.0008644,96520.0,96517.0,0.10503154]
[1733443949784,0.13034493,96543.0,96517.0,0.10503154]
[1733443950234,0.1281294,96542.0,96517.0,0.10503154]
[1733443950435,0.1281294,96529.0,96511.0,0.01007939]
[1733443950640,0.25847433,96529.0,96511.0,0.01007939]
[1733443950883,0.0008637,96520.0,96491.0,0.0777]
[1733443951104,0.0008637,96520.0,96491.0,0.00841504]
[1733443951105,0.1281294,96513.0,96491.0,0.00841504]
[1733443951310,0.1281294,96512.0,96491.0,0.00841504]
[1733443951552,0.1281294,96512.0,96472.0,0.0777]
[1733443951553,0.00129519,96513.0,96492.0,0.10503154]
[1733443951753,0.0008637,96520.0,96492.0,0.10503154]
[1733443952259,0.12790863,96540.0,96500.0,0.10503154]
[1733443952934,0.12790863,96540.0,96501.0,0.023]
[1733443953136,0.12790863,96540.0,96502.0,0.10503154]
[1733443953340,0.1281294,96537.0,96503.0,0.023]
[1733443953562,0.1281294,96532.0,96504.0,0.10503154]
[1733443953764,0.25603803,96532.0,96504.0,0.10503154]
[1733443953918,0.1281294,96528.0,96504.0,0.10503154]
[1733443954536,0.1281294,96523.0,96496.0,0.09191554]
[1733443954739,0.1281294,96528.0,96497.0,0.10503154]
[1733443954963,0.12790863,96531.0,96497.0,0.10503154]
[1733443955149,0.1281294,96533.0,96497.0,0.10503154]
[1733443955307,0.0031008,96541.0,96497.0,0.10503154]
[1733443955308,0.12790863,96531.0,96497.0,0.10503154]
[1733443955682,0.10813234,96541.0,96498.0,0.10503154]
[1733443955683,0.12770943,96541.0,96498.0,0.10503154]
[1733443955898,0.1281294,96551.0,96510.0,0.10503154]
[1733443956175,0.0008656,96560.0,96522.0,0.10503154]
[1733443956176,0.00310546,96554.0,96522.0,0.10503154]
[1733443956426,0.00310546,96554.0,96523.0,0.023]
[1733443956636,0.00310546,96554.0,96524.0,0.10503154]
[1733443956839,0.0008656,96560.0,96524.0,0.10503154]
[1733443956840,0.0008656,96560.0,96525.0,0.023]
[1733443957059,0.0008656,96560.0,96527.0,0.023]
[1733443957233,0.0008656,96560.0,96528.0,0.10503154]
[1733443957473,0.0008656,96560.0,96461.0,0.0912998]
[1733443957474,0.0008656,96560.0,96532.0,0.023]
[1733443957696,0.0008656,96560.0,96534.0,0.023]
[1733443957888,0.0008656,96560.0,96536.0,0.023]
[1733443958143,0.0008656,96560.0,96538.0,0.023]
[1733443958366,0.0008656,96560.0,96536.0,0.023]
[1733443958367,0.0008656,96560.0,96539.0,0.10503154]
[1733443958579,0.0129209,96562.0,96539.0,0.10503154]
[1733443959003,0.0129209,96562.0,96540.0,0.023]
[1733443959206,0.0129209,96562.0,96541.0,0.10503154]
[1733443960052,0.0073586,96562.0,96541.0,0.10503154]
[1733443960548,0.0073586,96562.0,96542.0,0.023]
[1733443960759,0.0073586,96562.0,96544.0,0.0995]
[1733443960969,0.0073586,96562.0,96546.0,0.023]
[1733443961143,0.0073586,96562.0,96548.0,0.023]
[1733443961295,0.0073586,96562.0,96550.0,0.023]
[1733443961528,0.0073586,96562.0,96552.0,0.023]
[1733443961723,0.0073586,96562.0,96554.0,0.023]
[1733443961930,0.0073586,96562.0,96561.0,0.10503154]
[1733443962136,0.1281294,96602.0,96561.0,0.10503154]
[1733443962137,0.12122886,96606.0,96561.0,0.10503154]
[1733443962346,0.2262604,96606.0,96566.0,0.023]
[1733443962551,0.2262604,96606.0,96565.0,0.10503154]
[1733443962552,0.12122886,96584.0,96545.0,0.023]
[1733443962753,0.12122886,96579.0,96547.0,0.023]
[1733443962936,0.12122886,96579.0,96544.0,0.0765]
[1733443962937,0.12122886,96579.0,96548.0,0.10503154]
[1733443963142,0.12122886,96573.0,96548.0,0.10503154]
[1733443963368,0.12122886,96565.0,96544.0,0.00804422]
[1733443963546,0.12122886,96565.0,96527.0,0.0765]
[1733443963547,0.12122886,96580.0,96545.0,0.10503154]
[1733443964625,0.24583749,96580.0,96546.0,0.023]
[1733443964826,0.12460863,96582.0,96548.0,0.023]
[1733443965076,0.12460863,96597.0,96550.0,0.023]
[1733443965297,0.12122886,96591.0,96552.0,0.023]
[1733443965491,0.12122886,96591.0,96548.0,0.09186384]
[1733443965492,0.11792886,96591.0,96554.0,0.023]
[1733443965697,0.12460863,96595.0,96559.0,0.10503154]
[1733443965915,0.00813363,96614.0,96550.0,0.0465]
[1733443965916,0.0017296,96610.0,96573.0,0.023]
[1733443966118,0.0017296,96610.0,96575.0,0.023]
[1733443966322,0.0017296,96610.0,96563.0,0.02539137]
[1733443966323,0.0017296,96610.0,96577.0,0.023]
[1733443966531,0.0017296,96610.0,96579.0,0.023]
[1733443966778,0.0017296,96610.0,96580.0,0.10503154]
[1733443969412,0.0017296,96610.0,96579.0,0.00842491]
[1733443969413,0.12460863,96594.0,96579.0,0.00842491]
[1733443969598,0.11462886,96588.0,96541.0,0.0852]
[1733443969737,0.23923749,96590.0,96576.0,0.00837131]
[1733443969931,0.23923749,96590.0,96548.0,0.10503154]
[1733443970178,0.11462886,96594.0,96554.0,0.10503154]
[1733443970393,0.12460863,96604.0,96567.0,0.10503154]
[1733443970734,0.12460863,96600.0,96567.0,0.10503154]
[1733443970943,0.11462886,96594.0,96567.0,0.10503154]
[1733443971160,0.11462886,96583.0,96541.0,0.0852]
[1733443971385,0.10632563,96593.0,96542.0,0.10503154]
[1733443971386,0.11462886,96578.0,96542.0,0.10503154]
[1733443972074,0.10503154,96593.0,96542.0,0.10503154]
[1733443972075,0.11462886,96573.0,96542.0,0.10503154]
[1733443972271,0.11592323,96573.0,96542.0,0.10503154]
[1733443973113,0.11462886,96563.0,96542.0,0.10503154]
[1733443973656,0.11462886,96563.0,96550.0,0.0017252]
[1733443974097,0.00129451,96562.0,96550.0,0.0017252]
[1733443974305,0.11462886,96553.0,96550.0,0.0017252]
[1733443974513,0.23923749,96551.0,96550.0,0.0017252]
[1733443977077,0.23263749,96551.0,96550.0,0.0017252]
[1733443978667,0.00834237,96572.0,96550.0,0.0017252]
[1733443978668,0.11800863,96560.0,96550.0,0.0017252]
[1733443978904,0.11800863,96571.0,96551.0,0.10503154]
[1733443979336,0.11800863,96562.0,96550.0,0.0017252]
[1733443979539,0.23263749,96557.0,96550.0,0.00978495]
[1733443979770,0.11800863,96557.0,96550.0,0.0017252]
[1733443980247,0.23263749,96557.0,96550.0,0.0017252]
[1733443980448,0.11800863,96566.0,96550.0,0.10675674]
[1733443980886,0.10852886,96552.0,96550.0,0.0017252]
[1733443981139,0.22783218,96551.0,96550.0,0.0017252]
[1733443981355,0.22653749,96551.0,96550.0,0.0017252]
[1733443982910,0.33156903,96551.0,96550.0,0.0017252]
[1733443983205,0.33156903,96551.0,96500.0,0.01]
[1733443983206,0.10852886,96530.0,96500.0,0.01]
[1733443983410,0.10852886,96522.0,96500.0,0.01]
[1733443983624,0.10702886,96522.0,96500.0,0.01]
[1733443983835,0.11800863,96525.0,96500.0,0.01]
[1733443983836,0.10702886,96516.0,96500.0,0.01]
[1733443984043,0.10702886,96516.0,96510.0,0.00983025]
[1733443984277,0.10702886,96516.0,96510.0,0.0017262]
[1733443984931,0.09232886,96516.0,96510.0,0.0017262]
[1733443985631,0.08652886,96511.0,96510.0,0.00989295]
[1733443985838,0.30956903,96511.0,96510.0,0.0017262]
[1733443986543,0.33256903,96511.0,96510.0,0.0017262]
[1733443986757,0.22617891,96511.0,96510.0,0.0017262]
[1733443986974,0.31270777,96511.0,96510.0,0.0017262]
[1733443987226,0.22617891,96511.0,96510.0,0.0017262]
[1733443987432,0.19447623,96511.0,96510.0,0.0017262]
[1733443987672,0.29954777,96511.0,96510.0,0.0017262]
[1733443988555,0.29654777,96511.0,96510.0,0.0017262]
[1733443988986,0.29631013,96511.0,96510.0,0.0017262]
[1733443989576,0.19127859,96511.0,96510.0,0.0017262]
[1733443989815,0.18813985,96511.0,96510.0,0.0017262]
[1733443990677,0.29317139,96511.0,96510.0,0.0017262]
[1733443993531,0.31617139,96511.0,96510.0,0.0017262]
[1733443994025,0.31617139,96511.0,96500.0,0.01]
[1733443994026,0.26519985,96501.0,96500.0,0.01]
[1733443994230,0.37023139,96501.0,96500.0,0.01]
[1733443994455,0.08652886,96471.0,96448.0,0.0046]
[1733443994634,0.18809985,96468.0,96448.0,0.0046]
[1733443994904,0.29442736,96468.0,96448.0,0.0130444]
[1733443995107,0.29313139,96468.0,96448.0,0.0046]
[1733443995749,0.30140331,96468.0,96448.0,0.0046]
[1733443995981,0.10157099,96451.0,96448.0,0.0046]
[1733443996183,0.10503154,96451.0,96448.0,0.0046]
[1733443996389,0.29442755,96451.0,96448.0,0.0046]
[1733443996608,0.29313139,96451.0,96448.0,0.0046]
[1733443997907,0.18809985,96421.0,96420.0,0.001726]
[1733443999101,0.00129652,96442.0,96420.0,0.001726]
[1733443999102,0.08652886,96433.0,96420.0,0.001726]
[1733443999290,0.08652886,96429.0,96420.0,0.001726]
[1733443999697,0.10157099,96426.0,96420.0,0.001726]
[1733444000366,0.00841003,96452.0,96420.0,0.001726]
[1733444000367,0.18809985,96421.0,96420.0,0.001726]
[1733444002560,0.18813985,96421.0,96420.0,0.001726]
[1733444002963,0.18583985,96421.0,96420.0,0.001726]
[1733444005065,0.29087139,96421.0,96420.0,0.001726]
[1733444005276,0.10157099,96411.0,96410.0,0.0017258]
[1733444005483,0.18519985,96411.0,96410.0,0.0017258]
[1733444006227,0.29023139,96411.0,96410.0,0.0017258]
[1733444007340,0.29023139,96411.0,96350.0,0.0017288]
[1733444007341,0.08422886,96381.0,96350.0,0.0017288]
[1733444007552,0.08422886,96377.0,96350.0,0.0017288]
[1733444007736,0.08422886,96380.0,96350.0,0.0017288]
[1733444007887,0.10097099,96394.0,96370.0,0.11519209]
[1733444008097,0.10097099,96403.0,96371.0,0.18463154]
[1733444008307,0.08422886,96403.0,96371.0,0.18463154]
[1733444008522,0.08422886,96409.0,96371.0,0.18463154]
[1733444008727,0.10097099,96406.0,96372.0,0.0451]
[1733444008950,0.08422886,96397.0,96373.0,0.10503154]
[1733444009125,0.08422886,96375.0,96370.0,0.0017258]
[1733444009330,0.10226797,96382.0,96370.0,0.0017258]
[1733444009510,0.08422886,96379.0,96370.0,0.0017258]
[1733444009945,0.08422886,96380.0,96370.0,0.00978971]
[1733444010147,0.00129701,96379.0,96370.0,0.0017258]
[1733444010350,0.08422886,96379.0,96370.0,0.0017258]
[1733444010553,0.08422886,96379.0,96370.0,0.0085438]
[1733444010756,0.10097099,96381.0,96370.0,0.0085438]
[1733444011008,0.08422886,96379.0,96370.0,0.0085438]
[1733444011189,0.10097099,96381.0,96370.0,0.0085438]
[1733444011639,0.10097099,96386.0,96370.0,0.0170822]
[1733444011806,0.00310981,96393.0,96370.0,0.0170822]
[1733444012049,0.18519985,96410.0,96372.0,0.023]
[1733444012265,0.08422886,96407.0,96374.0,0.023]
[1733444012465,0.08422886,96407.0,96376.0,0.023]
[1733444012671,0.08422886,96407.0,96377.0,0.10503154]
[1733444012926,0.08422886,96407.0,96378.0,0.023]
[1733444013141,0.08422886,96407.0,96380.0,0.023]
[1733444013287,0.08422886,96404.0,96381.0,0.10503154]
[1733444013500,0.00129663,96403.0,96381.0,0.10503154]
[1733444013710,0.08422886,96398.0,96373.0,0.083118]
[1733444013935,0.10097099,96402.0,96374.0,0.10503154]
[1733444013936,0.08422886,96396.0,96374.0,0.10503154]
[1733444014138,0.10097099,96406.0,96375.0,0.023]
[1733444014300,0.18519985,96402.0,96376.0,0.10503154]
[1733444014661,0.0031064,96413.0,96373.0,0.083118]
[1733444014662,0.08422886,96389.0,96373.0,0.083118]
[1733444015249,0.08422886,96394.0,96373.0,0.083118]
[1733444015470,0.10097099,96397.0,96374.0,0.10503154]
[1733444015670,0.10097099,96407.0,96375.0,0.023]
[1733444015873,0.10097099,96410.0,96377.0,0.023]
[1733444016078,0.10097099,96410.0,96379.0,0.023]
[1733444016293,0.08422886,96412.0,96381.0,0.023]
[1733444016501,0.08422886,96427.0,96388.0,0.10503154]
[1733444016699,0.08422886,96427.0,96389.0,0.023]
[1733444016700,0.08552522,96427.0,96389.0,0.023]
[1733444016904,0.10097099,96422.0,96391.0,0.023]
[1733444017104,0.08422886,96418.0,96392.0,0.10503154]
[1733444017382,0.00129648,96417.0,96392.0,0.10503154]
[1733444017632,0.00129648,96417.0,96374.0,0.023]
[1733444017633,0.08422886,96407.0,96374.0,0.023]
[1733444017816,0.08422886,96407.0,96376.0,0.023]
[1733444018003,0.10097099,96406.0,96378.0,0.023]
[1733444018207,0.10226761,96406.0,96380.0,0.023]
[1733444018443,0.10226761,96406.0,96381.0,0.10503154]
[1733444018662,0.08422886,96401.0,96381.0,0.10503154]
[1733444018874,0.10097099,96406.0,96381.0,0.10503154]
[1733444019229,0.10097099,96406.0,96382.0,0.023]
[1733444019438,0.10097099,96406.0,96383.0,0.10503154]
[1733444020391,0.10097099,96418.0,96383.0,0.10503154]
[1733444020551,4e-05,96406.0,96383.0,0.10503154]
[1733444021298,4e-05,96406.0,96388.0,0.023]
[1733444021399,4e-05,96406.0,96389.0,0.10503154]
[1733444021619,4e-05,96406.0,96390.0,0.023]
[1733444021834,4e-05,96406.0,96385.0,0.0482]
[1733444021835,4e-05,96406.0,96392.0,0.023]
[1733444022006,4e-05,96406.0,96393.0,0.10503154]
[1733444022217,4e-05,96406.0,96394.0,0.023]
[1733444022393,4e-05,96406.0,96396.0,0.023]
[1733444022597,4e-05,96406.0,96398.0,0.023]
[1733444022885,4e-05,96406.0,96396.0,0.023]
[1733444022886,4e-05,96406.0,96399.0,0.10503154]
[1733444023311,0.0008656,96410.0,96400.0,0.023]
[1733444023511,0.0008656,96410.0,96401.0,0.10503154]
[1733444023713,0.0008656,96410.0,96403.0,0.0763]
[1733444023826,0.0008656,96410.0,96406.0,0.023]
[1733444024058,0.00129623,96459.0,96406.0,0.023]
[1733444024059,0.10097099,96460.0,96440.0,0.54306]
[1733444024307,0.08422886,96459.0,96440.0,0.10503154]
[1733444025198,0.08422886,96459.0,96440.0,0.11372927]
[1733444025390,0.08422886,96459.0,96440.0,0.00869773]
[1733444025542,0.08422886,96441.0,96440.0,0.00869773]
[1733444025755,0.08422886,96441.0,96390.0,0.04902901]
[1733444025756,0.15,96424.0,96354.0,0.00309728]
[1733444025956,0.15,96388.0,96387.0,0.00865957]
[1733444026139,0.40503154,96388.0,96387.0,0.00865957]
[1733444026344,0.55632851,96388.0,96387.0,0.00865957]
[1733444026603,0.55632851,96388.0,96338.0,0.0763]
[1733444026604,0.15,96340.0,96320.0,0.0017258]
[1733444026830,0.15,96332.0,96321.0,0.10503154]
[1733444027028,2.32736616,96339.0,96320.0,0.01027348]
[1733444027029,0.15,96321.0,96320.0,0.01027348]
[1733444027231,2.62549216,96321.0,96320.0,0.0017258]
[1733444027390,2.32736616,96321.0,96284.0,0.04041751]
[1733444027611,0.44295843,96288.0,96287.0,0.10503154]
[1733444027882,1.46228693,96288.0,96287.0,0.10503154]
[1733444028514,1.46228693,96288.0,96287.0,0.10499154]
[1733444029359,1.38418693,96288.0,96287.0,0.12799154]
[1733444029579,0.08995808,96293.0,96288.0,0.0802]
[1733444029792,0.26987425,96328.0,96293.0,0.023]
[1733444029949,0.66417109,96384.0,96288.0,0.0802]
[1733444029950,0.33215361,96327.0,96295.0,0.023]
[1733444030159,0.33215361,96326.0,96297.0,0.023]
[1733444030371,0.33215361,96325.0,96299.0,0.023]
[1733444030546,0.33215361,96324.0,96301.0,0.023]
[1733444030923,0.15,96337.0,96303.0,0.023]
[1733444030924,0.33215361,96323.0,96303.0,0.023]
[1733444031137,0.15,96318.0,96289.0,0.10503154]
[1733444031348,0.15,96314.0,96288.0,0.10503154]
[1733444031552,0.33215361,96313.0,96288.0,0.10503154]
[1733444031787,0.33215361,96312.0,96288.0,0.10503154]
[1733444032004,0.33215361,96311.0,96288.0,0.10503154]
[1733444032186,0.15,96333.0,96290.0,0.10503154]
[1733444032402,0.33211677,96332.0,96291.0,0.023]
[1733444032525,0.33211677,96331.0,96292.0,0.10503154]
[1733444032732,0.33211677,96330.0,96293.0,0.023]
[1733444032945,0.33211677,96329.0,96294.0,0.10503154]
[1733444033150,0.33211677,96328.0,96295.0,0.023]
[1733444033346,0.33211677,96327.0,96297.0,0.023]
[1733444033546,0.15,96334.0,96299.0,0.023]
[1733444033547,0.33211677,96326.0,96299.0,0.023]
[1733444033797,0.33237213,96325.0,96301.0,0.023]
[1733444033999,0.15,96338.0,96288.0,0.0087443]
[1733444034000,0.15,96338.0,96303.0,0.023]
[1733444034196,0.33250285,96337.0,96305.0,0.023]
[1733444034399,0.33250285,96336.0,96307.0,0.023]
[1733444034612,0.15,96338.0,96294.0,0.0473]
[1733444034613,0.33250285,96335.0,96309.0,0.023]
[1733444034819,0.33250285,96334.0,96311.0,0.023]
[1733444035019,0.15,96338.0,96312.0,0.10503154]
[1733444035396,0.33272415,96337.0,96312.0,0.10503154]
[1733444035606,0.33272415,96336.0,96312.0,0.10503154]
[1733444035812,0.15,96355.0,96313.0,0.023]
[1733444035956,0.33292582,96354.0,96315.0,0.023]
[1733444036157,0.33284882,96353.0,96317.0,0.023]
[1733444036360,0.3,96363.0,96319.0,0.023]
[1733444036570,0.3,96363.0,96306.0,0.0802]
[1733444036571,0.15,96363.0,96321.0,0.023]
[1733444036730,0.15,96363.0,96323.0,0.023]